Cogmind - Beta 15 @@@ ROGUE MODE // 2025.06.02 @ 17:30:05 Player: Figgis Result: Destroyed by YE-4IX(R) with Subdweller Beam Cannon Performance ------------- Evolutions (0) 0 Regions Visited (2) 400 Robots Destroyed (15) 75 Value Destroyed (343) 343 Prototype IDs (0) 0 Alien Tech Used (0) 0 Bonus (0) 0 TOTAL SCORE: 818 Bonus ------- None Cogmind --------- Core Integrity 0/250 Matter 282/300 Energy 100/100 System Corruption 1% Temperature Cool (9) Movement Core (450) Ox8 Location -10/Subcaves Parts ------- > --- POWER (1) -------- (None) > --- PROPULSION (2) --- (None) > --- UTILITY (2) ------ Small Storage Unit Large Storage Unit > --- WEAPON (2) ------- Medium Laser > --- INVENTORY (15) --- Ion Engine Ion Engine Ion Engine Aluminum Leg Aluminum Leg Aluminum Leg Aluminum Leg Terrain Scanner Terrain Scanner Hammer Peak State ------------ > --- POWER ------------ Light Ion Engine > --- PROPULSION ------- Aluminum Leg Aluminum Leg > --- UTILITY ---------- Small Storage Unit Large Storage Unit > --- WEAPON ----------- Medium Laser Light Assault Rifle > --- INVENTORY -------- Ion Engine Ion Engine Ion Engine Light Ion Engine Aluminum Leg Aluminum Leg Aluminum Leg Aluminum Leg Grenade Launcher Hammer [Rating: 8] Favorites ----------- Power Light Ion Engine Engine Light Ion Engine Propulsion Aluminum Leg Leg Aluminum Leg Utility Small Storage Unit Storage Small Storage Unit Weapon Light Assault Rifle Energy Gun Medium Laser Ballistic Gun Light Assault Rifle Launcher Grenade Launcher Build | -11 -10 -10 ------- Run | Yrd Mat Sub Slots Evolved . | . . . Power . | . . . Propulsion . | . . . Utility . | . . . Weapon . | . . . Parts Attached 13 | 3 8 2 Power 2 | 1 . 1 Engine 2 | 1 . 1 Core . | . . . Reactor . | . . . Propulsion 5 | 2 2 1 Treads . | . . . Leg 5 | 2 2 1 Wheel . | . . . Hover . | . . . Flight . | . . . Utility 2 | . 2 . Device . | . . . Storage 2 | . 2 . Processor . | . . . Hackware . | . . . Protection . | . . . Artifact . | . . . Weapon 4 | . 4 . Energy Gun 1 | . 1 . Energy Cannon . | . . . Ballistic Gun 2 | . 2 . Ballistic Cannon . | . . . Launcher 1 | . 1 . Special Weapon . | . . . Impact Weapon . | . . . Slashing Weapon . | . . . Piercing Weapon . | . . . Special Melee Weapon . | . . . Unidentified Prototypes . | . . . Parts Lost 7 | . 2 5 Power 1 | . . 1 Propulsion 3 | . 1 2 Utility . | . . . Weapon 3 | . 1 2 Highest Loss Streak 5 | . 2 5 To Critical Strikes . | . . . Average Backups 8 | 2 8 11 Power 2 | . 2 3 Propulsion 2 | . 2 4 Utility . | . . 2 Weapon 2 | 1 2 1 Tool/Special . | . . . Unused Backups 10 | . . 10 Power 3 | . . 3 Propulsion 4 | . . 4 Utility 2 | . . 2 Weapon 1 | . . 1 Tool/Special . | . . . Average Slot Usage (%) 90 | . 90 96 Engine 13 | . 14 12 Leg 27 | . 27 26 Storage 21 | . 20 28 Energy Gun 6 | . 5 14 Ballistic Gun 19 | . 20 12 Peak Build Rating 8 | 3 8 8 Average Rating 6 | 2 6 7 On Entrance 3 | . 3 8 Naked Turns . | . . . Heaviest Build 31 | 3 31 31 Greatest Support 20 | 3 20 20 Greatest Overweight (x) 2 | . 1 2 Average Overweight (x) . | . . 1 Largest Inventory Capacity 15 | 5 15 15 Average Capacity 11 | 5 11 15 Most Carried 13 | 5 13 13 Average Carried 8 | 3 8 10 Final Capacity 15 | 5 15 15 Final Carried 13 | 5 13 10 Class Distribution -------------------- 100% | Mutant Dominant Class ---------------- Mutant | -10/Materials Mutant | -10/Subcaves Resources | -11 -10 -10 ----------- Run | Yrd Mat Sub Matter Collected 434 | 230 204 . Remotely . | . . . Salvage Created 369 | . 369 . Parts 31 | . 31 . Haulers Intercepted . | . . . Recyclers Shooed 2 | . 2 . Parts Field Recycled . | . . . Retrieved Matter . | . . . Parts Self-Destructed . | . . . Prevented . | . . . Kills | -11 -10 -10 ------- Run | Yrd Mat Sub Combat Hostiles Destroyed 13 | . 13 . Guns 13 | . 13 . Classes Destroyed 4 | . 4 . Operator 1 | . 1 . Watcher 1 | . 1 . Swarmer 6 | . 6 . Grunt 7 | . 7 . Best Kill Streak 4 | . 4 . Combat Bots Only 3 | . 3 . Max Kills in Single Turn 1 | . 1 . Gunslinging . | . . . Exploded . | . . . Melee . | . . . Uniques/NPCs Destroyed . | . . . Combat | -11 -10 -10 -------- Run | Yrd Mat Sub Hostile Shots Fired 131 | . 109 22 Missed 41 | . 36 5 Hits 90 | . 73 17 Projectile 90 | . 73 17 Damage Taken 1230 | . 780 450 Core 251 | . 136 115 Absorbed by Shields . | . . . Core Remaining (%) 100 | 100 . . Volleys Fired 54 | . 49 5 Largest 2 | . 2 2 Hottest 80 | . 70 80 Shots Fired 104 | . 95 9 Gun 102 | . 94 8 Cannon . | . . . Launcher 2 | . 1 1 Special . | . . . Kinetic 73 | . 70 3 Thermal 29 | . 24 5 Explosive 2 | . 1 1 Electromagnetic . | . . . Robot Hit Streak 10 | . 10 8 Robot Miss Streak 4 | . 4 . Penetration Max . | . . . Secondary Targets 6 | . 6 . Max Gunslinging Chain 1 | . 1 . Shots Hit Robots 62 | . 55 7 Core Hits 32 | . 30 2 Critical Kills . | . . . Critical Parts Destroyed 1 | . . 1 Critical Strikes 2 | . 1 1 Burn 1 | . 1 . Destroy 1 | . . 1 Melee Attacks . | . . . Impact . | . . . Slashing . | . . . Piercing . | . . . Sneak Attacks . | . . . Combat Hostiles . | . . . Follow-up Attacks . | . . . Damage Inflicted 790 | . 611 179 Guns 658 | . 584 74 Cannons . | . . . Explosions 128 | . 23 105 Melee . | . . . Ramming 4 | . 4 . Kinetic 448 | . 422 26 Thermal 210 | . 162 48 Explosive 128 | . 23 105 Electromagnetic . | . . . Impact . | . . . Slashing . | . . . Piercing . | . . . Highest Corruption 1 | . 1 1 Average Corruption 1 | . 1 1 Corruption Purged . | . . . Corruption Blocked . | . . . Effects 4 | . 4 . Message Errors 1 | . 1 . Matter Fused 1 | . 1 . Data Loss (minor) 1 | . 1 . Weapon Failures 1 | . 1 . Overload Shots . | . . . Overflow Damage . | . . . Projectiles . | . . . Explosions . | . . . Melee . | . . . Knockbacks . | . . . Impact . | . . . Kinetic . | . . . Secondary . | . . . Self-Inflicted Damage 40 | . 8 32 Shots 2 | . 1 1 Rammed . | . . . Targets Rammed 1 | . 1 . Kicked 1 | . 1 . Crushed . | . . . Highest Temperature 168 | . 168 4 Average Temperature 45 | . 46 4 Received Heat Transfer 402 | . 321 81 Siege Activations . | . . . Martial Activations . | . . . Shielding Activations . | . . . Robots Disrupted . | . . . Combat Hostiles . | . . . Robots Corrupted . | . . . Combat Hostiles . | . . . Parts Fried . | . . . Impact Corruptions . | . . . Robots Melted . | . . . Combat Hostiles . | . . . Parts Melted 2 | . 2 . Heat Transferred 666 | . 518 148 Parts Sabotaged . | . . . Parts Stolen . | . . . Parts Stripped . | . . . Power Chain Reactions . | . . . Alert | -11 -10 -10 ------- Run | Yrd Mat Sub Maximum Alert Level . | . . . Low Security (%) 100 | 100 100 . Level 1 . | . . . Level 2 . | . . . Level 3 . | . . . Level 4 . | . . . Level 5 . | . . . High Security . | . . . Max Security . | . . . Peak Influence 83 | . 83 . Initial . | . . . Average 29 | . 30 . Influence Increases 354 | . 354 . Destroy 0b10 Robot/C 260 | . 260 . Destroy 0b10 Robot/NC 10 | . 10 . Destroy Leader 52 | . 52 . Successful Hack 24 | . 24 . Destroy Structure 8 | . 8 . Influence Decreases 354 | . 316 38 Entered New Map 19 | . . 19 Time Decay 323 | . 304 19 Lost Part 12 | . 12 . Squads Dispatched 3 | . 3 . Investigation 3 | . 3 . Extermination . | . . . Reinforcement . | . . . Assault . | . . . Garrison . | . . . Intercept . | . . . Searches Triggered . | . . . Construction Impeded . | . . . Haulers Reinforced . | . . . Active Scanning Responses . | . . . Cargo Convoy Interrupts . | . . . Stealth | -11 -10 -10 --------- Run | Yrd Mat Sub Distress Signals . | . . . Communications Jammed . | . . . Distress Signals . | . . . Times Spotted 24 | . 22 2 Peak Tracking Total 5 | . 5 2 Tactical Retreats . | . . . Traps | -11 -10 -10 ------- Run | Yrd Mat Sub Traps Triggered 3 | . 3 . Indirectly . | . . . Trap Hack Attempts . | . . . Triggered . | . . . Disarmed . | . . . Reprogrammed . | . . . Reused . | . . . Traps Extracted . | . . . Installed . | . . . Triggered . | . . . Machines | -11 -10 -10 ---------- Run | Yrd Mat Sub Machines Disabled . | . . . Max in Single Turn . | . . . Machines Repaired . | . . . Machines Dismantled . | . . . Machines Sabotaged . | . . . Overloaded Fab Kills . | . . . Hacking | -11 -10 -10 --------- Run | Yrd Mat Sub Machines Accessed 4 | . 4 . Terminals 4 | . 4 . Fabricators . | . . . Repair Stations . | . . . Recycling Units . | . . . Scanalyzers . | . . . Garrison Access . | . . . Total Hacks 15 | . 15 . Successful 10 | . 10 . Failed 5 | . 5 . Catastrophic . | . . . Database Lockouts . | . . . Manual 10 | . 10 . Terminals 15 | . 15 . Fabricators . | . . . Repair Stations . | . . . Recycling Units . | . . . Scanalyzers . | . . . Garrison Access . | . . . Terminal Hacks 6 | . 6 . Robot Analysis 4 | . 4 . Emergency Access Points 1 | . 1 . Zone Layout 1 | . 1 . Fabricator Hacks . | . . . Repair Station Hacks . | . . . Recycling Unit Hacks . | . . . Scanalyzer . | . . . Garrison Access Hacks . | . . . Unauthorized Hacks 4 | . 4 . Terminals 4 | . 4 . Botnet 4 | . 4 . Fabricators . | . . . Repair Stations . | . . . Recycling Units . | . . . Scanalyzers . | . . . Garrison Access . | . . . Data Cores Recovered 1 | . 1 . Used . | . . . Hacking Detections 3 | . 3 . Full Trace Events 1 | . 1 . Feedback Events . | . . . Feedback Blocked . | . . . Robot Schematics Acquired . | . . . Robots Built . | . . . Authchips . | . . . Time . | . . . Total Robot Build Rating . | . . . Part Schematics Acquired . | . . . Parts Built . | . . . Authchips . | . . . Time . | . . . Total Part Build Rating . | . . . Parts Repaired . | . . . Time . | . . . Parts Recycled . | . . . Recycled Matter . | . . . Retrieved Matter . | . . . Retrieved Components . | . . . Parts Scanalyzed . | . . . Part Schematics Acquired . | . . . Parts Damaged . | . . . Bothacking | -11 -10 -10 ------------ Run | Yrd Mat Sub Used RIF Installer . | . . . Robots Hacked . | . . . Non-combat . | . . . Combat . | . . . Robot Hacks Applied . | . . . Relay Couplers Released . | . . . Fabnet Peak Effective % . | . . . Robots Rewired . | . . . Allies Hacked . | . . . Hacks Repelled . | . . . Allies | -11 -10 -10 -------- Run | Yrd Mat Sub Total Allies . | . . . Largest Group . | . . . Highest-Rated Group . | . . . Highest-Rated Ally . | . . . Total Orders . | . . . Ally Attacks . | . . . Total Damage . | . . . Kills . | . . . Allies Corrupted . | . . . Allies Melted . | . . . Intel | -11 -10 -10 ------- Run | Yrd Mat Sub Active Infowar (turns) . | . . . Robot Analysis Total 4 | . 4 . Derelict Logs Recovered . | . . . Drone Launches . | . . . Drone Recoveries . | . . . Exploration | -11 -10 -10 ------------- Run | Yrd Mat Sub Turns Passed 875 | 27 777 71 Spaces Moved 476 | 36 416 24 Core 79 | 36 43 . Treads . | . . . Legs 397 | . 373 24 Wheels . | . . . Hover . | . . . Flight . | . . . Fastest Speed 50 | 50 50 190 Average Speed 141 | 50 145 195 Slowest Speed 260 | 50 190 260 Overloaded Moves . | . . . Propulsion Burnouts . | . . . Robots Hopped . | . . . Potential Cave-ins . | . . . Cave-ins Triggered . | . . . Exploration Rate (%) 26 | 3 73 3 Regions Visited 2 Branch Regions 1 Pre-discovered Areas . | . . . Known Exits Taken . | . . . Unknown Exits Taken 2 | 1 1 . Scrap Searched . | . . . Spaces Dug 5 | . . 5 Terrain Destroyed 12 | . 7 5 Melee . | . . . Projectile . | . . . AOE 12 | . 7 5 Terrain Rammed . | . . . Walls Destroyed . | . . . Machines Disabled . | . . . Actions | -11 -10 -10 --------- Run | Yrd Mat Sub Total 581 | 43 498 40 Wait 17 | . 11 6 Move 474 | 35 415 24 Hop . | . . . Pick Up 18 | 5 13 . Fast Attach 5 | 3 2 . Attach 5 | . 4 1 Detach . | . . . Swap 4 | . 2 2 Drop 3 | . 1 2 Fire 54 | . 49 5 Melee . | . . . Ram . | . . . Kick 1 | . 1 . Crush . | . . . Escape Stasis . | . . . Rewire . | . . . Trap . | . . . Miscellaneous . | . . . Route ------- -11/Scrapyard -10/Materials (discovered 4 exits: [*Mat x2] / [*Min] / [*Sub]) -10/Subcaves History --------- Turn | Location | Event 14 | -11/Scrapyard | Discovered new exit (range 15) 28 | -11/Scrapyard | Entered Materials 217 | -10/Materials | Discovered new exit (range 9) 311 | -10/Materials | Build established: Mutant 327 | -10/Materials | Discovered new exit (range 18) 517 | -10/Materials | Core integrity fell below 50% 739 | -10/Materials | Discovered new exit (range 13) 759 | -10/Materials | Discovered new exit (range 16) 805 | -10/Materials | Entered Subcaves 841 | -10/Subcaves | Ambushed by Subdwellers from Twisted Machinery 867 | -10/Subcaves | Core integrity fell below 20% 876 | -10/Subcaves | Destroyed by YE-4IX(R) with Subdweller Beam Cannon Last Messages --------------- 00759_ EXIT=FOUND 00769_ QZ#T1KV#E IV831OY4KD32DQPOIPKUHLAUTHF:ZZ 00792_ Triggered Alarm Trap. 00792_ An alarm sounds. 00792_ ALERT: Alarm triggered, dispatching investigation squad. 00792_ U-05 Engineer lays Concrete. LOCATION=UNKNOWN AMBIENT_HEAT=-10 GOAL=ESCAPE 00807_ Dropped Aluminum Leg. 00809_ Dropped Lgt. Ion Engine. 00841_ YE-4IX(R) emerges from the Twisted Machinery. 00857_ YE-4IX(R) suffers critical hit (Destroy). 00857_ Destroyed Sub. Monowheel. 00864_ Lgt. Assault Rifle destroyed. 00864_ Aluminum Leg destroyed. 00864_ Lgt. Ion Engine destroyed. 00876_ The unstable cave ceiling collapses. 00876_ Aluminum Leg destroyed. 00876_ Grenade Launcher destroyed. Map ----- +----------------------------------------------------+ | ?????????????????????????????????????????????????? | | ?????????????????????????????????????????????????? | | ?????????????????????????????????????????????????? | | ?????????????????????????????????????????????????? | | ?????????????????????????????????????????????????? | | ?????????????????????????????????????????????????? | | ?????????????????????????????????????????????????? | | ?????????????????????????????????????????????????? | | ?????????????????????????????????????????????????? | | ??????????????????????##?????????????????????????? | | ??????????????????????# ?????????????????????????? | | ??????????????? ??????# "????????????????????????? | | ??????????????? #???? "##??????????????????????? | | ???????????????? "#### ""##????????????????????? | | ????????????????? """" " #??##????????????????? | | ?????????????????? "" ""### ?????????????????? | | ??????????????????? " ??????????????????? | | ???????????????????? ???????????????????? | | ????????????????????? ????????????????????? | | ??????????????????????# #????????????????????? | | ???????????????????????# ##???????????????????? | | ??????????????????????### #???????????????????? | | ??????????????????????# ""#???????????????????? | | ?????????????????????###RR "##??????????????????? | | ????????????????????## " "##?????????????????? | | ????????????????????# " @ " "#?????????????????? | | ????????????????????###"" " "#?????????????????? | | ??????????????????????# "" # #?????????????????? | | ??????????????????????###" ####?????????????????? | | ????????????????????????#"" #???????????????????? | | ????????????????????????##" ##???????????????????? | | ?????????????????????????# ##???????????????????? | | ?????????????????????????# #???????????????????? | | ??????????????????????#### #???????????????????? | | ?????????????????????## # #???????????????????? | | ?????????????????????# # ##???????????????????? | | ???????????????????### ##???????????????????? | | ???????????????????# #???????????????????? | | ??????????????????## # #???????????????????? | | ??????????????????# * # ##???????????????????? | | ?????????????????# #????????????????????? | | ????????????????# #???????????????????? | | ????????????????## ######???????????????????? | | ?????????????????# #????????????????????????? | | ?????????????????# ????????????????????????? | | ?????????????????# ???????????????????????? | | ?????????????????## ## ??????????????????????? | | ??????????????????# ##?#### ?????????????????????? | | ??????????????????# ??????? ????????????????????? | | ?????????????????? ???????? ???????????????????? | +----------------------------------------------------+ Best States ------------- Heat Dissipation 25 Energy Generation 10 Energy Capacity 125 Matter Stores 300 Matter Capacity 300 Sight Range 16 Terrain Scan Density 10 Evasion (%) 55 Item Schematics ----------------- None Robot Schematics ------------------ None Fabricated ------------ Nothing Repaired ---------- Nothing Alien Tech Used ----------------- None Achievements -------------- None Challenges ------------ None Game ------ Seed NullExoskeletonKit Manual? 0 Play Time 00:05:52 Cumulative 174.7 hours Start 2025.06.02 @ 17:24:41 End 2025.06.02 @ 17:30:05 Sessions 1 Manual Loads 0 Difficulty Rogue Special Mode None Game No. 272 Rogue 269 Adventurer 3 Explorer 0 Win Type - Total 1 Types 1/0/0/0/0/0/0/0/0/0 Lore% 60 Gallery% 57 Achievement% 46 Wizard Run 0 Options --------- Layout 0 ASCII 0 Keyboard 0 Movement Mouse Keybinds 0 Fullscreen 2 Font 18/SmallcapsGlow Map View 76x50 Zoom Use 0% Tactical HUD 1 Map Filters NONE Filters NONE Steam 1 RUN: 9d6257c2-14ae-48e6-9cd9-588ddfcdba03